fUSD/lending_fUSD_20250206
["ID","MTS","AMOUNT","RATE_DAILY","PERIOD"]
[352007388,1738876254635,-1014.82,0.00017527,2]
[352007389,1738876254648,-767.47,0.00017527,2]
[352007390,1738876254659,-695.55,0.00017527,2]
[352007391,1738876254672,-612.98,0.00017527,2]
[352007392,1738876254683,-993.91,0.00017527,2]
[352007393,1738876254695,-500.0,0.00017527,2]
[352007394,1738876254707,-504.84,0.00017527,2]
[352007395,1738876254719,-1654.52,0.00017527,2]
[352007396,1738876254730,-878.59,0.00017527,2]
[352007397,1738876254742,-500.0,0.00017527,2]
[352007398,1738876254753,-500.0,0.00017527,2]
[352007399,1738876254764,-526.46,0.00017527,2]
[352007400,1738876254775,-786.51,0.00017527,2]
[352007401,1738876254786,-864.3,0.00017527,2]
[352007402,1738876254796,-783.9,0.00017527,2]
[352007403,1738876254807,-597.3,0.00017527,2]
[352007404,1738876254817,-1022.06,0.00017527,2]
[352007405,1738876254829,-510.39,0.00017527,2]
[352007406,1738876254840,-500.0,0.00017527,2]
[352007407,1738876254851,-645.94,0.00017527,2]
[352007408,1738876254861,-1190.89,0.00017527,2]
[352007409,1738876254872,-500.0,0.00017527,2]
[352007410,1738876254882,-571.98,0.00017527,2]
[352007411,1738876254890,-500.0,0.00017527,2]
[352007412,1738876254899,-500.0,0.00017527,2]
[352007413,1738876254907,-500.0,0.00017527,2]
[352007414,1738876254916,-537.83,0.00017527,2]
[352007415,1738876254924,-1135.93,0.00017527,2]
[352007416,1738876254933,-500.0,0.00017527,2]
[352007417,1738876254940,-973.78,0.00017527,2]
[352007418,1738876254948,-500.0,0.00017527,2]
[352007419,1738876254957,-500.0,0.00017527,2]
[352007420,1738876254968,-500.19,0.00017527,2]
[352007421,1738876254978,-708.82,0.00017527,2]
[352007422,1738876254988,-694.04,0.00017527,2]
[352007423,1738876254995,-500.0,0.00017528,2]
[352007424,1738876255004,-2651.0,0.00017528,2]
[352007425,1738876255013,-179.28884629,0.00017528,2]
[352007426,1738876255021,-238.93,0.00017528,2]
[352007427,1738876255029,-151.0,0.00017528,2]
[352007428,1738876255039,-151.0,0.00017528,2]
[352007429,1738876255050,-500.0,0.00017528,2]
[352007430,1738876255060,-204.06,0.00017528,2]
[352007431,1738876255071,-500.0,0.00017528,2]
[352007432,1738876255080,-303.27,0.00017528,2]
[352007433,1738876255091,-197.96,0.00017528,2]
[352007434,1738876255101,-647.09355077,0.00017528,2]
[352007435,1738876255111,-500.0,0.00017528,2]
[352007436,1738876255121,-500.0,0.00017528,2]
[352007437,1738876255131,-500.0,0.00017528,2]
[352007438,1738876255141,-286.25,0.00017528,2]
[352007439,1738876255151,-629.84360327,0.00017528,2]
[352007440,1738876255162,-500.0,0.00017528,2]
[352007441,1738876255173,-500.0,0.00017528,2]
[352007442,1738876255184,-500.0,0.00017528,2]
[352007443,1738876255195,-500.0,0.00017528,2]
[352007444,1738876255205,-500.0,0.00017528,2]
[352007445,1738876255215,-500.0,0.00017528,2]
[352007446,1738876255226,-500.0,0.00017528,2]
[352007447,1738876255236,-311.2,0.00017528,2]
[352007448,1738876255247,-500.0,0.00017528,2]
[352007449,1738876255257,-500.0,0.00017528,2]
[352007450,1738876255267,-500.0,0.00017528,2]
[352007451,1738876255276,-500.0,0.00017528,2]
[352007452,1738876255285,-151.0,0.00017528,2]
[352007453,1738876255295,-500.0,0.00017528,2]
[352007454,1738876255306,-500.0,0.00017528,2]
[352007455,1738876255316,-500.0,0.00017528,2]
[352007456,1738876255326,-500.0,0.00017528,2]
[352007457,1738876255335,-500.0,0.00017528,2]
[352007458,1738876255345,-500.0,0.00017528,2]
[352007459,1738876255355,-717.8,0.00017528,2]
[352007460,1738876255365,-500.0,0.00017528,2]
[352007461,1738876255375,-500.0,0.00017528,2]
[352007462,1738876255384,-577.77,0.00017528,2]
[352007463,1738876255394,-500.0,0.00017528,2]
[352007464,1738876255404,-500.0,0.00017528,2]
[352007465,1738876255414,-500.0,0.00017528,2]
[352007466,1738876255424,-500.0,0.00017528,2]
[352007467,1738876255433,-500.0,0.00017528,2]
[352007468,1738876255443,-186.19,0.00017528,2]
[352007469,1738876255452,-500.0,0.00017528,2]
[352007470,1738876255461,-500.0,0.00017528,2]
[352007471,1738876255472,-500.0,0.00017528,2]
[352007472,1738876255482,-500.0,0.00017528,2]
[352007473,1738876255491,-500.0,0.00017528,2]
[352007474,1738876255501,-530.58,0.00017528,2]
[352007475,1738876255511,-500.0,0.00017528,2]
[352007476,1738876255521,-649.05,0.00017528,2]
[352007477,1738876255531,-500.0,0.00017528,2]
[352007478,1738876255541,-500.0,0.00017528,2]
[352007479,1738876255551,-500.0,0.00017528,2]
[352007480,1738876255561,-150.8,0.00017528,2]
[352007481,1738876255571,-594.37,0.00017528,2]
[352007482,1738876255581,-500.0,0.00017528,2]
[352007483,1738876255591,-500.0,0.00017528,2]
[352007484,1738876255600,-500.0,0.00017528,2]
[352007485,1738876255610,-234.47,0.00017528,2]
[352007486,1738876255620,-500.0,0.00017528,2]
[352007487,1738876255630,-500.0,0.00017528,2]
[352007488,1738876255639,-500.0,0.00017528,2]
[352007489,1738876255648,-500.0,0.00017528,2]
[352007490,1738876255658,-500.0,0.00017528,2]
[352007491,1738876255672,-500.0,0.00017528,2]
[352007492,1738876255681,-500.0,0.00017528,2]
[352007493,1738876255691,-500.0,0.00017528,2]
[352007494,1738876255701,-500.0,0.00017528,2]
[352007495,1738876255711,-500.0,0.00017528,2]
[352007496,1738876255721,-500.0,0.00017528,2]
[352007497,1738876255731,-500.0,0.00017528,2]
[352007498,1738876255742,-500.0,0.00017528,2]
[352007499,1738876255752,-500.0,0.00017528,2]
[352007500,1738876255762,-500.0,0.00017528,2]
[352007501,1738876255772,-500.0,0.00017528,2]
[352007502,1738876255781,-500.0,0.00017528,2]
[352007503,1738876255791,-543.36,0.00017528,2]
[352007504,1738876255800,-500.0,0.00017528,2]
[352007505,1738876255809,-500.0,0.00017528,2]
[352007506,1738876255819,-500.0,0.00017528,2]
[352007507,1738876255829,-229.86,0.00017528,2]
[352007508,1738876255840,-500.0,0.00017528,2]
[352007509,1738876255850,-500.0,0.00017528,2]
[352007510,1738876255859,-500.0,0.00017528,2]
[352007511,1738876255869,-500.0,0.00017528,2]
[352007512,1738876255879,-217.74,0.00017528,2]
[352007513,1738876255888,-514.1,0.00017528,2]
[352007514,1738876255958,-500.0,0.00017528,2]
[352007515,1738876255968,-253.37,0.00017528,2]
[352007516,1738876255978,-500.0,0.00017528,2]
[352007517,1738876255988,-675.59,0.00017528,2]
[352007518,1738876255998,-500.0,0.00017528,2]
[352007519,1738876256007,-1691.93,0.00017528,2]
[352007520,1738876256017,-151.0,0.00017528,2]
[352007521,1738876256026,-516.62,0.00017528,2]
[352007522,1738876256036,-151.0,0.00017528,2]
[352007523,1738876256045,-2151.37,0.00017528,2]
[352007524,1738876256054,-500.0,0.00017528,2]
[352007525,1738876256064,-637.52,0.00017528,2]
[352007526,1738876256075,-500.0,0.00017528,2]
[352007527,1738876256086,-500.0,0.00017528,2]
[352007528,1738876256096,-1046.02,0.00017528,2]
[352007529,1738876256107,-500.0,0.00017528,2]
[352007530,1738876256117,-581.67,0.00017528,2]
[352007531,1738876256127,-205.04,0.00017528,2]
[352007532,1738876256139,-500.0,0.00017528,2]
[352007533,1738876256149,-516.47,0.00017528,2]
[352007534,1738876256158,-500.0,0.00017528,2]
[352007535,1738876256167,-500.0,0.00017528,2]
[352007536,1738876256177,-500.0,0.00017528,2]
[352007537,1738876256187,-737.86,0.00017528,2]
[352007538,1738876256196,-500.0,0.00017528,2]
[352007539,1738876256206,-1059.9,0.00017528,2]
[352007540,1738876256215,-500.0,0.00017528,2]
[352007541,1738876256225,-748.88,0.00017528,2]
[352007542,1738876256235,-500.0,0.00017528,2]
[352007543,1738876256244,-505.36,0.00017528,2]
[352007544,1738876256254,-500.0,0.00017528,2]
[352007545,1738876256263,-500.0,0.00017528,2]
[352007546,1738876256273,-640.73,0.00017528,2]
[352007547,1738876256282,-693.31,0.00017528,2]
[352007548,1738876256292,-568.19,0.00017528,2]
[352007549,1738876256301,-151.0,0.00017528,2]
[352007550,1738876256311,-151.0,0.00017528,2]
[352007551,1738876256320,-500.0,0.00017528,2]
[352007552,1738876256329,-175.34,0.00017528,2]
[352007553,1738876256339,-610.16,0.00017528,2]
[352007554,1738876256348,-833.92,0.00017528,2]
[352007555,1738876256358,-500.0,0.00017528,2]
[352007556,1738876256367,-653.12,0.00017528,2]
[352007557,1738876256377,-500.0,0.00017528,2]
[352007558,1738876256386,-1244.56,0.00017528,2]
[352007559,1738876256395,-590.61,0.00017528,2]
[352007560,1738876256404,-252.01,0.00017528,2]
[352007561,1738876256413,-500.0,0.00017528,2]
[352007562,1738876256422,-838.67,0.00017528,2]
[352007563,1738876256432,-483.74,0.00017528,2]
[352007564,1738876256441,-751.47,0.00017528,2]
[352007565,1738876256451,-500.0,0.00017528,2]
[352007566,1738876256460,-510.51,0.00017528,2]
[352007567,1738876256471,-634.66,0.00017528,2]
[352007568,1738876256481,-500.0,0.00017528,2]
[352007569,1738876256490,-1059.52,0.00017528,2]
[352007570,1738876256500,-500.0,0.00017528,2]
[352007571,1738876256510,-500.0,0.00017528,2]
[352007572,1738876256520,-500.0,0.00017528,2]
[352007573,1738876256530,-642.4,0.00017528,2]
[352007574,1738876256539,-500.0,0.00017528,2]
[352007575,1738876256549,-694.03,0.00017528,2]
[352007576,1738876256558,-500.0,0.00017528,2]
[352007577,1738876256567,-213.3,0.00017528,2]
[352007578,1738876256577,-500.0,0.00017528,2]
[352007579,1738876256587,-650.29,0.00017528,2]
[352007580,1738876256596,-500.0,0.00017528,2]
[352007581,1738876256606,-507.75,0.00017528,2]
[352007582,1738876256616,-500.0,0.00017528,2]
[352007583,1738876256625,-500.0,0.00017528,2]
[352007584,1738876256634,-879.8,0.00017528,2]
[352007585,1738876256644,-500.0,0.00017528,2]
[352007586,1738876256654,-809.66,0.00017528,2]
[352007587,1738876256666,-500.0,0.00017528,2]
[352007588,1738876256677,-519.75,0.00017528,2]
[352007589,1738876256687,-500.0,0.00017528,2]
[352007590,1738876256697,-538.89,0.00017528,2]
[352007591,1738876256708,-664.14,0.00017528,2]
[352007592,1738876256718,-948.95,0.00017528,2]
[352007593,1738876256728,-307.71,0.00017528,2]
[352007594,1738876256737,-4713.24153139,0.00017528,2]
[352007595,1738876256747,-839170.29940059,0.00017528,2]
[352007596,1738876256982,-200967.99999986,0.00017528,2]
[352007597,1738876256994,-774.6985844,0.00017528,2]
[352007598,1738876257005,-11548.91204221,0.00017528,2]
[352007599,1738876257016,-573.67999995,0.00017528,2]
[352007600,1738876257032,-5215.79247951,0.00017528,2]
[352007601,1738876257044,-18065.53095398,0.00017528,2]
[352007602,1738876257055,-86355.46715608,0.00017528,2]
[352007603,1738876257066,-351.03411824,0.00017528,2]
[352007604,1738876257511,-290.64,0.00017002,2]
[352007605,1738876257522,-140.89194145,0.00017002,2]
[352007606,1738876257532,-500.0,0.00017116,2]
[352007607,1738876257541,-106.27870464,0.00017116,2]
[352007608,1738876257553,-398.12334968,0.00017116,2]
[352007609,1738876257562,-500.0,0.00017253,2]
[352007610,1738876257572,-500.0,0.0001739,2]
[352007611,1738876257582,-500.0,0.00017527,2]
[352007612,1738876257592,-5632.56774033,0.00017528,2]
[352007613,1738876257603,-1393.97811259,0.00017528,2]
[352007614,1738876257614,-2625.0367,0.00017528,2]
[352007615,1738876257625,-303611.25828642,0.00017528,2]
[352007616,1738876257635,-9600.0,0.00017528,2]
[352007617,1738876257646,-298.3043,0.00017528,2]
[352007618,1738876257658,-11876.39998308,0.00017528,2]
[352007619,1738876257672,-303.17662,0.00017528,2]
[352007620,1738876257689,-933.975,0.00017528,2]
[352007621,1738876257700,-9412.55700053,0.00017528,2]
[352007622,1738876257711,-298722.83940256,0.00017528,2]
[352007623,1738876257725,-24783.46334663,0.00017528,2]
[352007624,1738876257743,-1865.91852446,0.00017528,2]
[352007625,1738876257755,-315.45669997,0.00017528,2]
[352007626,1738876258124,-150.0,0.00017185,2]
[352007627,1738876258135,-150.0,0.00017212,2]
[352007628,1738876258145,-150.0,0.00017214,2]
[352007629,1738876258156,-150.0,0.00017295,2]
[352007630,1738876258166,-150.0,0.0001731,2]
[352007631,1738876258176,-42.6859962,0.00017313,2]
[352007632,1738876258189,-107.3140038,0.00017313,2]
[352007633,1738876258198,-150.0,0.00017341,2]
[352007634,1738876258209,-150.0,0.00017407,2]
[352007635,1738876258223,-559.8091914,0.00017528,2]
[352007636,1738876258235,-1678.02054453,0.00017528,2]
[352007637,1738876258258,-150.0,0.00017164,2]
[352007638,1738876258268,-150.0,0.00017266,2]
[352007639,1738876258278,-168.8888796,0.00017528,2]
[352007640,1738876258291,-5062.64641841,0.00017528,2]
[352007641,1738876258303,-1200.0,0.00017528,2]
[352007642,1738876258315,-20002.212072,0.00017528,2]
[352007643,1738876258327,-10062.993556,0.00017528,2]
[352007644,1738876258339,-5132.2190332,0.00017528,2]
[352007645,1738876258350,-2112.7,0.00017528,2]
[352007646,1738876258363,-777.741585,0.00017528,2]
[352007647,1738876258375,-3759.5482,0.00017528,2]
[352007648,1738876258387,-10416.80049251,0.00017528,2]
[352007649,1738876258400,-988893.25450038,0.00017528,2]
[352007650,1738876258422,-150.0,0.00017271,2]
[352007651,1738876258432,-150.0,0.00017418,2]
[352007652,1738876258442,-2085.91333527,0.00017528,2]
[352007653,1738876258459,-150.0,0.00017166,2]
[352007654,1738876258471,-3561.39063234,0.00017528,2]
[352007655,1738876258482,-152897.85133328,0.00017528,2]
[352007656,1738876258514,-368.03,0.00017117,2]
[352007657,1738876258524,-150.0,0.00017205,2]
[352007658,1738876258535,-150.0,0.00017286,2]
[352007659,1738876258545,-3405.65351621,0.00017528,2]
[352007660,1738876258556,-313.06330969,0.00017528,2]
[352007661,1738876258568,-1346.60363188,0.00017528,2]
[352007662,1738876258580,-1436.74816541,0.00017528,2]
[352007665,1738877108149,700.0,0.0001,2]
[352007666,1738877108171,700.0,0.0001,2]
[352007667,1738877108194,700.0,0.0001,2]
[352007668,1738877108217,700.0,0.0001,2]
[352007669,1738877108244,313600.80691067,0.0001,2]
[352007672,1738877222919,32831.47568865,9.37e-05,2]
[352007673,1738877222949,89944.8065233,9.37e-05,2]
[352007681,1738877278274,200.0,0.0001,2]
[352007682,1738877278298,357558.74006953,0.0001,2]
[352007710,1738877432001,-154.49,0.00010137,2]
[352007712,1738877432011,-300.0,0.00012123,2]
[352007714,1738877432021,-904.71000005,0.00012124,2]
[352007717,1738877432035,-458.4848216,0.00012124,2]
[352007718,1738877432065,-236.80517835,0.00012124,2]
[352007719,1738877432075,-4400.0,0.00012124,2]
[352007720,1738877432085,-420.0,0.00013307,2]
[352007721,1738877432096,-864.72532184,0.00013307,2]
[352007722,1738877432106,-1600.0,0.00013494,2]
[352007723,1738877432116,-4400.0,0.00013494,2]
[352007724,1738877432126,-178.5,0.00013699,2]
[352007725,1738877432136,-250.0,0.00013867,2]
[352007726,1738877432152,-671.83,0.00014348,2]
[352007727,1738877432162,-587.0,0.00014606,2]
[352007728,1738877432172,-1600.0,0.00014864,2]
[352007729,1738877432181,-4400.0,0.00014864,2]
[352007730,1738877432191,-603.6,0.00015913,2]
[352007731,1738877432200,-467.0,0.00016032,2]
[352007732,1738877432210,-500.0,0.00016127,2]
[352007733,1738877432221,-189.17,0.00016127,2]
[352007734,1738877432231,-1600.0,0.00016234,2]
[352007735,1738877432241,-4400.0,0.00016234,2]
[352007736,1738877432251,-509.65,0.00016241,2]
[352007737,1738877432268,-1000.0,0.00016336,2]
[352007738,1738877432277,-381.65,0.00016336,2]
[352007739,1738877432287,-377.08,0.00016336,2]
[352007740,1738877432296,-379.74,0.00016336,2]
[352007741,1738877432306,-717.37472,0.000165,2]
[352007742,1738877432316,-502.0,0.00016603,2]
[352007743,1738877432326,-671.83,0.00016611,2]
[352007744,1738877432336,-442.19,0.00016658,30]
[352007745,1738877432347,-374.79,0.00016779,2]
[352007746,1738877432357,-380.98,0.00016779,2]
[352007747,1738877432367,-370.01,0.0001678,2]
[352007748,1738877432376,-367.62,0.0001678,2]
[352007749,1738877432386,-375.97,0.0001678,2]
[352007750,1738877432400,-381.22,0.0001678,2]
[352007751,1738877432409,-378.74,0.0001678,2]
[352007752,1738877432419,-368.91,0.0001678,2]
[352007753,1738877432429,-380.99,0.0001678,2]
[352007754,1738877432438,-381.72,0.0001678,2]
[352007755,1738877432448,-500.0,0.000168,6]
[352007756,1738877432458,-154.49,0.00016813,2]
[352007757,1738877432468,-1100.0,0.000169,6]
[352007758,1738877432478,-1764.13,0.00017,4]
[352007759,1738877432487,-1943.26,0.00017096,14]
[352007760,1738877432497,-369.96,0.00017116,2]
[352007762,1738877432506,-311.638,0.00017116,2]
[352007764,1738877432515,-500.0,0.00017116,2]
[352007766,1738877432525,-500.0,0.00017116,2]
[352007768,1738877432535,-500.0,0.00017116,2]
[352007770,1738877432544,-497.5,0.00017116,2]
[352007772,1738877432554,-500.0,0.00017116,2]
[352007774,1738877432563,-500.0,0.00017116,2]
[352007776,1738877432572,-500.0,0.00017116,2]
[352007778,1738877432581,-500.0,0.00017116,2]
[352007779,1738877432590,-500.0,0.00017116,2]
[352007780,1738877432599,-500.0,0.00017116,2]
[352007781,1738877432609,-500.0,0.00017116,2]
[352007782,1738877432618,-500.0,0.00017116,2]
[352007783,1738877432628,-500.0,0.00017116,2]
[352007784,1738877432636,-500.0,0.00017116,2]
[352007785,1738877432648,-500.0,0.00017116,2]
[352007786,1738877432658,-500.0,0.00017116,2]
[352007787,1738877432668,-500.0,0.00017116,2]
[352007788,1738877432677,-500.0,0.00017116,2]
[352007789,1738877432687,-500.0,0.00017116,2]
[352007790,1738877432697,-500.0,0.00017116,2]
[352007791,1738877432707,-500.0,0.00017116,2]
[352007792,1738877432717,-638.78,0.00017116,2]
[352007793,1738877432727,-500.0,0.00017116,2]
[352007794,1738877432736,-500.0,0.00017116,2]
[352007795,1738877432746,-500.0,0.00017116,2]
[352007796,1738877432755,-500.0,0.00017116,2]
[352007797,1738877432765,-500.0,0.00017116,2]
[352007798,1738877432775,-500.0,0.00017116,2]
[352007800,1738877432784,-500.0,0.00017116,2]
[352007802,1738877432793,-500.0,0.00017116,2]
[352007804,1738877432804,-500.0,0.00017116,2]
[352007806,1738877432812,-397.53820449,0.00017116,2]
[352007808,1738877432822,-500.0,0.00017116,2]
[352007810,1738877432831,-500.0,0.00017116,2]
[352007812,1738877432841,-500.0,0.00017116,2]
[352007814,1738877432850,-500.0,0.00017116,2]
[352007816,1738877432859,-500.0,0.00017116,2]
[352007818,1738877432869,-500.0,0.00017116,2]
[352007820,1738877432878,-500.0,0.00017116,2]
[352007822,1738877432891,-500.0,0.00017116,2]
[352007824,1738877432901,-500.0,0.00017116,2]
[352007826,1738877432910,-500.0,0.00017116,2]
[352007828,1738877432920,-500.0,0.00017116,2]
[352007830,1738877432929,-500.0,0.00017116,2]
[352007832,1738877432938,-500.0,0.00017116,2]
[352007834,1738877432948,-500.0,0.00017116,2]
[352007836,1738877432957,-500.0,0.00017116,2]
[352007838,1738877432969,-500.0,0.00017116,2]
[352007840,1738877432979,-500.0,0.00017116,2]
[352007842,1738877432988,-500.0,0.00017116,2]
[352007844,1738877432997,-500.0,0.00017116,2]
[352007846,1738877433007,-500.0,0.00017116,2]
[352007848,1738877433020,-500.0,0.00017116,2]
[352007850,1738877433032,-500.0,0.00017116,2]
[352007852,1738877433043,-500.0,0.00017116,2]
[352007854,1738877433054,-500.0,0.00017116,2]
[352007856,1738877433065,-500.0,0.00017116,2]
[352007858,1738877433076,-500.0,0.00017116,2]
[352007860,1738877433086,-500.0,0.00017116,2]
[352007862,1738877433096,-500.0,0.00017116,2]
[352007864,1738877433107,-500.0,0.00017116,2]
[352007866,1738877433116,-500.0,0.00017116,2]
[352007868,1738877433126,-500.0,0.00017116,2]
[352007870,1738877433137,-500.0,0.00017116,2]
[352007872,1738877433151,-500.0,0.00017116,2]
[352007874,1738877433162,-500.0,0.00017116,2]
[352007876,1738877433172,-500.0,0.00017116,2]
[352007878,1738877433182,-500.0,0.00017116,2]
[352007880,1738877433192,-500.0,0.00017116,2]
[352007882,1738877433205,-500.0,0.00017116,2]
[352007884,1738877433216,-500.0,0.00017116,2]
[352007885,1738877433227,-500.0,0.00017116,2]
[352007887,1738877433238,-543.44,0.00017116,2]
[352007890,1738877433250,-500.0,0.00017117,2]
[352007892,1738877433261,-500.0,0.00017117,2]
[352007894,1738877433272,-500.84898559,0.00017117,2]
[352007896,1738877433283,-500.0,0.00017117,2]
[352007898,1738877433293,-500.0,0.00017117,2]
[352007900,1738877433303,-501.15212674,0.00017117,2]
[352007902,1738877433313,-617.10135635,0.00017117,2]
[352007904,1738877433323,-503.61936873,0.00017117,2]
[352007906,1738877433334,-318.15034882,0.00017117,2]
[352007908,1738877433344,-559.31228933,0.00017117,2]
[352007910,1738877433354,-500.0,0.00017117,2]
[352007912,1738877433364,-500.0,0.00017117,2]
[352007914,1738877433373,-609.38,0.00017117,2]
[352007915,1738877433383,-500.0,0.00017117,2]
[352007917,1738877433396,-500.0,0.00017117,2]
[352007920,1738877433406,-501.74987338,0.00017117,2]
[352007921,1738877433416,-500.0,0.00017117,2]
[352007923,1738877433426,-500.0,0.00017117,2]
[352007926,1738877433436,-500.0,0.00017117,2]
[352007927,1738877433446,-500.0,0.00017117,2]
[352007929,1738877433456,-520.3041098,0.00017117,2]
[352007931,1738877433465,-500.0,0.00017117,2]
[352007933,1738877433475,-500.0,0.00017117,2]
[352007936,1738877433486,-500.0,0.00017117,2]
[352007937,1738877433496,-500.0,0.00017117,2]
[352007939,1738877433506,-500.0,0.00017117,2]
[352007941,1738877433516,-536.42,0.00017117,2]
[352007943,1738877433527,-500.0,0.00017117,2]
[352007945,1738877433537,-500.0,0.00017117,2]
[352007947,1738877433546,-500.0,0.00017117,2]
[352007949,1738877433556,-500.0,0.00017117,2]
[352007951,1738877433566,-500.0,0.00017117,2]
[352007953,1738877433576,-590.7,0.00017117,2]
[352007955,1738877433585,-500.0,0.00017117,2]
[352007957,1738877433595,-500.0,0.00017117,2]
[352007959,1738877433605,-500.0,0.00017117,2]
[352007961,1738877433615,-500.0,0.00017117,2]
[352007963,1738877433624,-500.0,0.00017117,2]
[352007965,1738877433634,-500.0,0.00017117,2]
[352007967,1738877433645,-500.0,0.00017117,2]
[352007969,1738877433654,-616.92,0.00017117,2]
[352007971,1738877433663,-500.0,0.00017117,2]
[352007973,1738877433674,-500.0,0.00017117,2]
[352007975,1738877433684,-500.0,0.00017117,2]
[352007977,1738877433694,-500.0,0.00017117,2]
[352007979,1738877433704,-500.0,0.00017117,2]
[352007981,1738877433714,-500.0,0.00017117,2]
[352007983,1738877433724,-500.0,0.00017117,2]
[352007985,1738877433733,-500.0,0.00017117,2]
[352007987,1738877433744,-500.0,0.00017117,2]
[352007989,1738877433756,-500.0,0.00017117,2]
[352007991,1738877433766,-500.0,0.00017117,2]
[352007993,1738877433777,-156.39864357,0.00017151,2]
[352007995,1738877433787,-355.98959072,0.00017152,2]
[352007997,1738877433796,-832.5641686,0.00017177,2]
[352007999,1738877433807,-984.89,0.00017178,2]
[352008000,1738877433816,-984.89,0.00017178,2]
[352008001,1738877433825,-984.89,0.00017178,2]
[352008002,1738877433834,-984.89,0.00017178,2]
[352008003,1738877433844,-984.89,0.00017178,2]
[352008004,1738877433853,-984.89,0.00017178,2]
[352008005,1738877433862,-984.89,0.00017178,2]
[352008006,1738877433871,-984.89,0.00017178,2]
[352008007,1738877433880,-500.0,0.00017235,2]
[352008008,1738877433891,-500.0,0.00017235,2]
[352008009,1738877433900,-500.0,0.00017235,2]
[352008010,1738877433909,-789.84,0.00017235,2]
[352008011,1738877433918,-533.41,0.00017235,2]
[352008012,1738877433928,-500.0,0.00017235,2]
[352008013,1738877433937,-537.38,0.00017235,2]
[352008014,1738877433946,-850.56,0.00017235,2]
[352008015,1738877433955,-656.98,0.00017235,2]
[352008016,1738877433965,-500.0,0.00017235,2]
[352008017,1738877433975,-500.0,0.00017235,2]
[352008018,1738877433986,-500.0,0.00017235,2]
[352008019,1738877433996,-500.0,0.00017235,2]
[352008020,1738877434006,-500.78828581,0.00017235,2]
[352008021,1738877434015,-500.0,0.00017235,2]
[352008022,1738877434026,-500.0,0.00017235,2]
[352008023,1738877434040,-1251.75,0.00017235,2]
[352008024,1738877434049,-500.0,0.00017235,2]
[352008025,1738877434059,-500.0,0.00017235,2]
[352008026,1738877434068,-500.0,0.00017235,2]
[352008027,1738877434079,-500.0,0.00017235,2]
[352008028,1738877434090,-500.0,0.00017235,2]
[352008029,1738877434100,-500.0,0.00017235,2]
[352008030,1738877434111,-500.0,0.00017235,2]
[352008031,1738877434121,-500.0,0.00017235,2]
[352008032,1738877434131,-500.0,0.00017236,2]
[352008033,1738877434144,-500.0,0.00017236,2]
[352008034,1738877434154,-500.0,0.00017236,2]
[352008035,1738877434164,-500.0,0.00017236,2]
[352008036,1738877434174,-500.0,0.00017236,2]
[352008037,1738877434184,-500.0,0.00017236,2]
[352008038,1738877434194,-500.0,0.00017236,2]